bitfinex/quotes_BTCUSD_20220405
["timestamp","ask_amount","ask_price","bid_price","bid_amount"]
[1649152089807,0.05423261,46586.0,46581.0,0.05]
[1649152089909,0.05423261,46586.0,46579.0,0.320677]
[1649152090007,0.053664,46586.0,46579.0,0.320677]
[1649152090107,0.00244189,46591.0,46579.0,0.320677]
[1649152090108,0.00244189,46591.0,46579.0,0.420677]
[1649152090208,0.00054779,46586.0,46580.0,0.01073]
[1649152090369,0.00054779,46586.0,46581.0,0.320677]
[1649152090459,0.00054779,46586.0,46579.0,0.1]
[1649152091006,0.00054779,46586.0,46579.0,0.15]
[1649152091007,0.30516566,46585.0,46579.0,0.15]
[1649152091257,0.30516566,46585.0,46579.0,0.1]
[1649152091361,0.30516566,46585.0,46579.0,0.05]
[1649152091459,0.0005478,46584.0,46579.0,0.05]
[1649152091561,0.0005478,46584.0,46578.0,0.15]
[1649152091657,0.0005478,46584.0,46578.0,0.05]
[1649152091860,0.0005478,46584.0,46577.0,0.00309567]
[1649152091961,0.0005478,46584.0,46578.0,0.320677]
[1649152092160,0.0005478,46584.0,46578.0,0.420677]
[1649152092264,0.0005478,46584.0,46582.0,0.00256176]
[1649152092361,0.107331,46588.0,46582.0,0.00256176]
[1649152092362,0.05653789,46585.0,46582.0,0.00256176]
[1649152092564,0.00287489,46585.0,46582.0,0.00256176]
[1649152092664,0.00054781,46583.0,46582.0,0.00256176]
[1649152092763,0.00054781,46583.0,46582.0,0.32323876]
[1649152092962,0.00054781,46583.0,46582.0,0.37323876]
[1649152093601,0.00287489,46585.0,46582.0,0.37323876]
[1649152094149,0.00340664,46585.0,46582.0,0.05256176]
[1649152094349,0.00340664,46585.0,46582.0,0.05]
[1649152094449,0.00053175,46585.0,46581.0,0.00309743]
[1649152094649,0.05419475,46585.0,46581.0,0.00309743]
[1649152094853,0.053663,46585.0,46581.0,0.00309743]
[1649152095050,0.05419475,46585.0,46581.0,0.00309743]
[1649152096000,0.053663,46585.0,46581.0,0.00309743]
[1649152096101,0.053659,46589.0,46582.0,0.320677]
[1649152096203,0.00053175,46585.0,46581.0,0.00309743]
[1649152096303,0.00053175,46585.0,46582.0,0.320677]
[1649152096601,0.00053175,46585.0,46583.0,0.00271108]
[1649152096602,0.00287249,46584.0,46583.0,0.00271108]
[1649152096703,0.00287249,46584.0,46583.0,0.32338808]
[1649152097005,0.00287249,46584.0,46583.0,0.00271108]
[1649152098198,0.00287249,46584.0,46583.0,0.32338808]
[1649152098496,0.0027659,46584.0,46583.0,0.32338808]
[1649152098594,0.00215437,46586.0,46583.0,0.32613275]
[1649152098695,0.00268773,46586.0,46584.0,0.320677]
[1649152098797,0.00268773,46586.0,46583.0,0.00545575]
[1649152098996,0.00268773,46586.0,46584.0,0.320677]
[1649152099097,0.00268773,46586.0,46583.0,0.00545575]
[1649152099201,0.00268773,46586.0,46580.0,0.41877323]
[1649152099299,0.00268773,46586.0,46581.0,0.320677]
[1649152099499,0.00268773,46586.0,46581.0,0.220668]
[1649152099598,0.00215437,46586.0,46582.0,0.320677]
[1649152099749,0.0020365,46586.0,46582.0,0.320677]
[1649152099849,0.00257095,46586.0,46582.0,0.320677]
[1649152100152,0.00257095,46586.0,46582.0,0.370677]
[1649152100856,0.0021477,46584.0,46583.0,0.00546334]
[1649152101005,0.0021477,46584.0,46583.0,0.32614034]
[1649152101109,0.00166861,46584.0,46583.0,0.32614034]
[1649152101710,0.00546861,46584.0,46583.0,0.32614034]
[1649152103263,0.00628312,46584.0,46583.0,0.32614034]
[1649152103464,0.00628312,46584.0,46583.0,0.00546334]
[1649152103763,0.00628312,46584.0,46583.0,0.32614034]
[1649152103865,0.00628312,46584.0,46583.0,0.05546334]
[1649152103963,0.00628312,46584.0,46583.0,0.00546334]
[1649152104063,0.00628312,46584.0,46583.0,0.32614034]
[1649152104263,0.00628312,46584.0,46583.0,0.37614034]
[1649152104807,0.00628312,46584.0,46583.0,0.00546334]
[1649152104903,0.01092667,46582.0,46580.0,0.05]
[1649152105008,0.01092667,46582.0,46577.0,0.26481381]
[1649152105109,0.01092667,46582.0,46576.0,0.1]
[1649152105208,0.01092667,46582.0,46575.0,0.42555381]
[1649152105304,0.01092667,46582.0,46575.0,0.41481381]
[1649152105401,0.3,46585.0,46576.0,0.9]
[1649152105402,0.21083997,46585.0,46576.0,0.9]
[1649152105505,0.21053534,46586.0,46576.0,0.9]
[1649152105604,0.107341,46584.0,46577.0,0.32781042]
[1649152105702,0.10979238,46584.0,46577.0,0.32781042]
[1649152105804,0.10979238,46584.0,46578.0,0.05]
[1649152105903,0.30620139,46583.0,46578.0,0.05]
[1649152106004,0.30620139,46583.0,46579.0,0.320677]
[1649152106805,0.30566602,46583.0,46579.0,0.320677]
[1649152107157,0.30620138,46583.0,46576.0,0.41481381]
[1649152107357,0.30620138,46583.0,46576.0,0.15]
[1649152107455,0.30620138,46583.0,46577.0,0.320677]
[1649152107558,0.30620138,46583.0,46576.0,0.05]
[1649152107661,0.30620138,46583.0,46575.0,0.41481381]
[1649152107755,0.30620138,46583.0,46578.0,0.002294]
[1649152108108,0.30566602,46583.0,46580.0,0.29788987]
[1649152108207,0.30620126,46583.0,46581.0,0.320677]
[1649152108358,0.00053524,46583.0,46581.0,0.320677]
[1649152108451,0.00053524,46583.0,46579.0,0.320677]
[1649152108800,0.00053524,46583.0,46579.0,0.370677]
[1649152109001,0.00053524,46583.0,46579.0,0.05]
[1649152109203,0.00245138,46584.0,46579.0,0.05]
[1649152109303,0.00245138,46584.0,46578.0,0.002294]
[1649152109406,0.24378296,46582.0,46578.0,0.002294]
[1649152109603,0.24679329,46582.0,46578.0,0.002294]
[1649152110008,0.24679329,46582.0,46579.0,0.320677]
[1649152110212,0.00301033,46582.0,46579.0,0.370677]
[1649152111007,0.00301033,46582.0,46581.0,0.23284754]
[1649152111108,0.00301033,46582.0,46579.0,0.05]
[1649152111208,0.00301033,46582.0,46578.0,0.002294]
[1649152111308,0.3161138,46582.0,46579.0,0.00229926]
[1649152112009,0.3161138,46582.0,46580.0,0.320677]
[1649152112213,0.00301033,46582.0,46581.0,0.26329858]
[1649152112365,0.00301033,46582.0,46581.0,0.58397558]
[1649152113063,0.00301033,46582.0,46581.0,0.320677]
[1649152113262,0.00301033,46582.0,46580.0,0.320677]
[1649152113465,0.26587285,46584.0,46580.0,0.00296628]
[1649152114068,0.00300827,46584.0,46581.0,0.27817305]
[1649152114165,0.00300827,46584.0,46582.0,0.320677]
[1649152114266,0.00354352,46584.0,46581.0,0.32817305]
[1649152114366,0.00354352,46584.0,46582.0,0.320677]
[1649152114466,0.00354352,46584.0,46581.0,0.32817305]
[1649152114868,0.00354352,46584.0,46581.0,0.05]
[1649152114967,0.00354352,46584.0,46580.0,0.00296628]
[1649152115071,0.27235803,46584.0,46580.0,0.00296628]
[1649152115168,0.32548578,46584.0,46580.0,0.00296628]
[1649152115372,0.32548578,46584.0,46581.0,0.0022964]
[1649152115469,0.27235802,46584.0,46582.0,0.320677]
[1649152115572,0.27235802,46584.0,46581.0,0.0022964]
[1649152115668,0.27235802,46584.0,46582.0,0.05]
[1649152115842,0.27235802,46584.0,46581.0,0.0022964]
[1649152115997,0.27235802,46584.0,46582.0,0.320677]
[1649152116100,0.00354351,46584.0,46581.0,0.29168452]
[1649152116401,0.00300827,46584.0,46581.0,0.29168452]
[1649152116551,0.00300827,46584.0,46581.0,0.0022964]
[1649152116957,0.00300827,46584.0,46582.0,0.320677]
[1649152117052,0.00300827,46584.0,46583.0,0.3052907]
[1649152117505,0.00065091,46584.0,46583.0,0.3061068]
[1649152117604,0.00065091,46584.0,46583.0,0.6267838]
[1649152117814,0.00065091,46584.0,46583.0,0.3061068]
[1649152117912,0.00065091,46584.0,46583.0,0.6267838]
[1649152118006,0.00065091,46584.0,46583.0,0.92324244]
[1649152118106,0.00065091,46584.0,46583.0,0.60256544]
[1649152118206,0.00065091,46584.0,46583.0,0.92324244]
[1649152118305,0.00065091,46584.0,46583.0,0.60256544]
[1649152118405,0.00065091,46584.0,46583.0,0.3061068]
[1649152118911,0.00065091,46584.0,46583.0,0.6267838]
[1649152119306,0.00065091,46584.0,46583.0,0.95462811]
[1649152119748,0.21338129,46586.0,46584.0,0.320677]
[1649152119849,0.21338129,46586.0,46584.0,0.55877709]
[1649152120049,0.21284606,46586.0,46584.0,0.420677]
[1649152121201,0.19156146,46586.0,46584.0,0.474326]
[1649152121300,0.19156146,46586.0,46585.0,0.32782733]
[1649152121301,0.1887154,46586.0,46585.0,0.32782733]
[1649152121403,0.1887154,46586.0,46585.0,0.64850433]
[1649152121601,0.1887154,46586.0,46585.0,0.86744192]
[1649152123400,0.1887154,46586.0,46585.0,1.13225573]
[1649152123600,0.19270566,46586.0,46585.0,1.13782483]
[1649152123703,0.19270566,46586.0,46585.0,0.87301102]
[1649152126959,0.19270566,46586.0,46585.0,1.02301102]
[1649152127109,0.19270566,46586.0,46585.0,1.33782483]
[1649152127203,0.19270566,46586.0,46585.0,1.07301102]
[1649152127602,0.19270566,46586.0,46585.0,1.33796454]
[1649152128005,0.19270566,46586.0,46585.0,1.33714837]
[1649152128110,0.19270566,46586.0,46585.0,1.07219485]
[1649152128206,0.19270566,46586.0,46585.0,1.33714837]
[1649152128305,0.19270566,46586.0,46585.0,1.37994837]
[1649152128956,0.19270566,46586.0,46585.0,1.39844837]
[1649152129060,0.00053522,46588.0,46587.0,0.320677]
[1649152129258,0.00053522,46588.0,46587.0,0.55788342]
[1649152129357,0.00053522,46588.0,46587.0,0.60788342]
[1649152129759,0.1989,46595.0,46587.0,0.60788342]
[1649152129857,0.1989,46595.0,46587.0,0.513477]
[1649152130060,0.1989,46595.0,46593.0,0.22955064]
[1649152130160,0.407303,46600.0,46587.0,0.1928]
[1649152130311,0.407303,46600.0,46588.0,0.01073]
[1649152130312,0.26539757,46599.0,46588.0,0.01073]
[1649152130509,0.407303,46600.0,46588.0,0.01073]
[1649152130663,0.407303,46600.0,46589.0,0.0428]
[1649152130861,0.053649,46597.0,46589.0,0.0428]
[1649152131064,0.00053515,46597.0,46589.0,0.0428]
[1649152131161,0.00053515,46597.0,46590.0,0.053643]
[1649152131363,0.00053515,46597.0,46586.0,0.29506955]
[1649152131466,0.00053515,46597.0,46585.0,0.87015252]
[1649152131468,0.35981197,46586.0,46585.0,0.87015252]
[1649152131563,0.35981197,46586.0,46585.0,0.75647809]
[1649152131662,0.35981197,46586.0,46585.0,1.07626615]
[1649152131965,0.35981197,46586.0,46585.0,1.39309284]
[1649152132067,0.35981197,46586.0,46585.0,1.59446138]
[1649152132164,0.35981197,46586.0,46585.0,1.7749285]
[1649152132464,0.35981197,46586.0,46585.0,1.77017557]
[1649152132563,0.35981197,46586.0,46585.0,1.68411487]
[1649152132914,0.35981197,46586.0,46585.0,1.73775787]
[1649152133014,0.35981197,46586.0,46585.0,1.57682987]
[1649152133916,0.35981197,46586.0,46585.0,1.63047587]
[1649152134118,0.35981197,46586.0,46585.0,1.57682987]
[1649152134320,0.35981197,46586.0,46585.0,1.48242345]
[1649152134952,0.36301823,46586.0,46585.0,1.48941552]
[1649152135154,0.36301823,46586.0,46585.0,1.16173209]
[1649152136760,0.36301823,46586.0,46585.0,1.16086281]
[1649152137613,0.3628709,46586.0,46585.0,1.16086281]
[1649152141275,0.30483915,46586.0,46585.0,1.16086281]
[1649152141475,0.30483915,46586.0,46585.0,1.11806281]
[1649152142612,0.30567946,46586.0,46585.0,1.11806281]
[1649152142711,0.30567946,46586.0,46585.0,1.21796281]
[1649152142916,0.30567946,46586.0,46585.0,1.54566439]
[1649152143019,0.30567946,46586.0,46585.0,1.70925594]
[1649152143419,0.30567946,46586.0,46585.0,1.54566439]
[1649152144122,0.30567946,46586.0,46585.0,1.65566596]
[1649152144218,0.30567946,46586.0,46585.0,1.74215546]
[1649152144321,0.30567946,46586.0,46585.0,2.0511049]
[1649152144420,0.30567946,46586.0,46585.0,1.74215546]
[1649152145022,0.30567946,46586.0,46585.0,2.14498582]
[1649152145425,0.30567946,46586.0,46585.0,1.83498425]
[1649152145525,0.30567946,46586.0,46585.0,1.64710063]
[1649152145624,0.30567946,46586.0,46585.0,1.56061113]
[1649152145724,0.30567946,46586.0,46585.0,1.82547653]
[1649152146451,0.30567946,46586.0,46585.0,1.72053136]
[1649152146756,0.30567946,46586.0,46585.0,1.71644064]
[1649152147154,0.30567946,46586.0,46585.0,1.91644064]
[1649152147904,0.30567946,46586.0,46585.0,1.91144064]
[1649152148105,0.30567946,46586.0,46585.0,2.12139861]
[1649152150254,0.30567946,46586.0,46585.0,2.02225378]
[1649152150360,0.30567946,46586.0,46585.0,1.92235378]
[1649152150852,0.30567946,46586.0,46585.0,1.92671411]
[1649152151055,0.30567946,46586.0,46585.0,1.71675614]
[1649152151452,0.30567946,46586.0,46585.0,1.69825614]
[1649152152154,0.30567946,46586.0,46585.0,1.43339074]
[1649152152455,0.30567946,46586.0,46585.0,1.51965646]
[1649152154709,0.30567946,46586.0,46585.0,1.70239425]
[1649152154810,0.30567946,46586.0,46585.0,1.69153751]
[1649152154912,0.30567946,46586.0,46585.0,1.70239262]
[1649152156170,0.30567946,46586.0,46585.0,2.39939262]
[1649152157017,0.30567946,46586.0,46585.0,2.39792266]
[1649152157355,0.07577107,46586.0,46585.0,2.39792266]
[1649152158508,0.07577107,46586.0,46585.0,2.11610244]
[1649152159657,0.07577107,46586.0,46585.0,2.77030244]
[1649152160709,0.07577107,46586.0,46585.0,2.11610244]
[1649152161807,0.07577107,46586.0,46585.0,2.461353]
[1649152162257,0.06813923,46586.0,46585.0,2.461353]
[1649152163614,0.06813923,46586.0,46585.0,2.45049789]
[1649152163711,0.06813923,46586.0,46585.0,2.46135253]
[1649152163916,0.06813923,46586.0,46585.0,1.80715253]
[1649152164314,0.06813923,46586.0,46585.0,1.62441474]
[1649152164516,0.06813923,46586.0,46585.0,1.6135601]
[1649152164618,0.06813923,46586.0,46585.0,1.29377204]
[1649152164822,0.06813923,46586.0,46585.0,1.30740632]
[1649152164920,0.06813923,46586.0,46585.0,1.61659107]
[1649152165573,0.06813923,46586.0,46585.0,0.94820102]
[1649152168606,0.06813923,46586.0,46585.0,0.75320102]
[1649152169015,0.06813923,46586.0,46585.0,1.01822882]
[1649152169511,0.06813923,46586.0,46585.0,1.310003]
[1649152169712,0.06813923,46586.0,46585.0,1.30711263]
[1649152169810,0.06813923,46586.0,46585.0,1.45711263]
[1649152171168,0.06813923,46586.0,46585.0,1.35721263]
[1649152173307,0.06813923,46586.0,46585.0,1.09218483]
[1649152173609,0.06813923,46586.0,46585.0,1.09503583]
[1649152173709,0.06813923,46586.0,46585.0,0.77435883]
[1649152173912,0.06813923,46586.0,46585.0,1.09503583]
[1649152175611,0.04963923,46586.0,46585.0,1.36004664]
[1649152176769,0.04963923,46586.0,46585.0,1.06827246]
[1649152176969,0.04963923,46586.0,46585.0,0.80326165]
[1649152177071,0.04963923,46586.0,46585.0,0.47556007]
[1649152178172,0.04963923,46586.0,46585.0,0.15488307]
[1649152178272,0.04963923,46586.0,46585.0,0.47556007]
[1649152178523,0.04963923,46586.0,46585.0,0.32556007]
[1649152178727,0.14417079,46584.0,46583.0,0.321238]
[1649152179729,0.14417079,46584.0,46583.0,0.371238]
[1649152180235,0.1439499,46584.0,46583.0,0.371238]
[1649152181689,0.1439499,46584.0,46583.0,0.37365903]
[1649152181690,0.14869443,46584.0,46583.0,0.37365903]
[1649152182939,0.14869443,46584.0,46583.0,0.80140547]
[1649152183557,0.14869443,46584.0,46583.0,0.80403866]
[1649152183755,0.14869443,46584.0,46583.0,1.06904947]
[1649152183956,0.14869443,46584.0,46583.0,0.80403866]
[1649152184059,0.14869443,46584.0,46583.0,1.06904947]
[1649152184659,0.14869443,46584.0,46583.0,0.80403866]
[1649152184908,0.14869443,46584.0,46583.0,0.79903866]
[1649152185710,0.14869443,46584.0,46583.0,0.80056441]
[1649152186817,0.14869443,46584.0,46583.0,0.47932641]
[1649152187163,0.14869443,46584.0,46583.0,0.75403863]
[1649152187262,0.14869443,46584.0,46583.0,0.43280063]
[1649152187562,0.14869443,46584.0,46583.0,0.75403863]
[1649152188167,0.14869443,46584.0,46583.0,0.42629219]
[1649152188264,0.14869443,46584.0,46583.0,0.47629219]
[1649152189066,0.14869443,46584.0,46583.0,0.80407245]
[1649152189468,0.14869443,46584.0,46583.0,1.06905947]
[1649152189772,0.14869443,46584.0,46583.0,0.74782147]
[1649152189871,0.14869443,46584.0,46583.0,0.48283445]
[1649152190120,0.14869443,46584.0,46583.0,0.4813087]
[1649152190423,0.14869443,46584.0,46583.0,0.8025467]
[1649152191409,0.14869443,46584.0,46583.0,0.4813087]
[1649152191611,0.14869443,46584.0,46583.0,0.8025467]
[1649152191811,0.14869443,46584.0,46583.0,0.4813087]
[1649152192011,0.14869443,46584.0,46583.0,0.4763087]
[1649152192311,0.14869443,46584.0,46583.0,0.47894189]
[1649152193211,0.14869443,46584.0,46583.0,0.80017989]
[1649152193713,0.14869443,46584.0,46583.0,0.47894189]
[1649152193914,0.14869443,46584.0,46583.0,0.05116163]
[1649152194020,0.44869443,46584.0,46583.0,0.05116163]
[1649152194115,0.44869443,46584.0,46583.0,0.00352844]
[1649152194423,0.76933443,46584.0,46583.0,0.00352844]
[1649152194519,0.44869443,46584.0,46583.0,0.00089525]
[1649152195062,0.77254432,46584.0,46583.0,0.00089525]
[1649152195510,1.09318432,46584.0,46583.0,0.00089525]
[1649152196512,1.09318432,46584.0,46583.0,0.00304576]
[1649152198368,1.28022363,46584.0,46583.0,0.00304576]
[1649152198466,1.28022363,46584.0,46583.0,0.00388464]
[1649152198615,0.95637374,46584.0,46583.0,0.00388464]
[1649152199319,0.32064,46583.0,46582.0,0.00133503]
[1649152199419,0.83137,46583.0,46582.0,0.00133503]
[1649152199522,0.87417,46583.0,46582.0,0.00133503]
[1649152200221,0.053682,46580.0,46568.0,0.00111297]
[1649152200324,0.2592037,46570.0,46568.0,0.00111297]
[1649152200722,0.2701617,46574.0,46568.0,0.00111297]
[1649152200822,0.32064,46573.0,46568.0,0.00111297]
[1649152200921,0.3,46576.0,46568.0,0.00111297]
[1649152201026,0.32064,46575.0,46568.0,0.00111297]
[1649152201322,0.374319,46575.0,46568.0,0.00111297]
[1649152201723,0.374319,46575.0,46569.0,0.32820706]
[1649152202173,0.374319,46575.0,46569.0,0.37820706]
[1649152202624,0.374319,46575.0,46569.0,0.05]
[1649152202826,0.374319,46575.0,46567.0,0.051]
[1649152203026,0.32064,46574.0,46567.0,0.051]
[1649152203128,0.3,46573.0,46567.0,0.001]
[1649152203327,0.32064,46572.0,46567.0,0.001]
[1649152203427,0.3,46573.0,46567.0,0.001]
[1649152203526,0.32064,46572.0,46567.0,0.001]
[1649152203627,0.40790035,46576.0,46567.0,0.001]
[1649152203628,0.32064,46571.0,46567.0,0.001]
[1649152203727,0.32064,46570.0,46567.0,0.001]
[1649152203828,0.107366,46572.0,46567.0,0.001]
[1649152204031,0.29811075,46571.0,46567.0,0.001]
[1649152205083,0.62902594,46570.0,46567.0,0.001]
[1649152205179,0.29811075,46571.0,46567.0,0.001]
[1649152205283,0.3,46569.0,46567.0,0.001]
[1649152205381,0.29811075,46571.0,46567.0,0.001]
[1649152205930,0.50811075,46571.0,46567.0,0.001]
[1649152206232,0.32064,46570.0,46567.0,0.001]
[1649152206331,0.053681,46569.0,46567.0,0.001]
[1649152206735,0.04675966,46569.0,46567.0,0.001]
[1649152206831,0.04675966,46569.0,46568.0,0.0007793]
[1649152208982,0.00215773,46570.0,46568.0,0.0007793]
[1649152209183,0.21,46571.0,46568.0,0.0007793]
[1649152211566,0.00231083,46569.0,46567.0,0.05608929]
[1649152211769,0.00231083,46569.0,46568.0,0.03756891]
[1649152212319,0.00231083,46569.0,46568.0,0.07513241]
[1649152212518,0.00231083,46569.0,46568.0,0.73504831]
[1649152212618,0.00231083,46569.0,46568.0,0.41381031]
[1649152212821,0.00231083,46569.0,46568.0,0.73504831]
[1649152212970,0.00231083,46569.0,46568.0,0.41381031]
[1649152214722,0.00231083,46569.0,46568.0,0.74188155]
[1649152215372,0.00231083,46569.0,46568.0,0.66674914]
[1649152215671,0.00231083,46569.0,46568.0,0.3386779]
[1649152215972,0.00231083,46569.0,46568.0,0.33945701]
[1649152216623,0.00231083,46569.0,46568.0,0.66754456]
[1649152217285,0.00231083,46569.0,46568.0,0.37886666]
[1649152217574,0.00231083,46569.0,46568.0,0.05077911]
[1649152217821,0.00231083,46569.0,46568.0,0.00077911]
[1649152218273,0.00231083,46569.0,46568.0,0.00072157]
[1649152218872,0.00131717,46569.0,46568.0,0.00072157]
[1649152219273,0.32195717,46569.0,46568.0,0.00072157]
[1649152219376,0.00131717,46569.0,46568.0,0.00072157]
[1649152219827,0.32195717,46569.0,46568.0,0.00072157]
[1649152219924,0.00131717,46569.0,46568.0,0.00072157]
[1649152220125,0.32195717,46569.0,46568.0,0.00072157]
[1649152220331,0.62195717,46569.0,46568.0,0.00072157]
[1649152220427,0.62320052,46569.0,46568.0,0.00072157]
[1649152220526,0.00174996,46567.0,46562.0,0.05732618]
[1649152220627,0.00174996,46567.0,46562.0,0.05]
[1649152220728,0.00174996,46567.0,46561.0,0.002]
[1649152221282,0.27179971,46564.0,46561.0,0.002]
[1649152222034,0.32548871,46564.0,46561.0,0.002]
[1649152223333,0.32548871,46564.0,46562.0,0.32823909]
[1649152223638,0.053689,46564.0,46562.0,0.32823909]
[1649152223734,0.00198238,46567.0,46562.0,0.32823909]
[1649152224136,0.00198238,46567.0,46562.0,0.37823909]
[1649152224338,0.00198238,46567.0,46563.0,0.32823909]
[1649152224437,0.00198238,46567.0,46564.0,0.2817496]
[1649152224774,0.00174996,46567.0,46564.0,0.2817496]
[1649152224878,0.00174996,46567.0,46564.0,0.3317496]
[1649152225275,0.00174996,46567.0,46565.0,0.32823909]
[1649152226829,0.001,46566.0,46565.0,0.32823909]
[1649152227385,0.00489551,46566.0,46565.0,0.32823909]
[1649152229618,0.00489551,46566.0,46565.0,0.42823909]
[1649152230519,0.001,46566.0,46565.0,0.32823909]
[1649152231272,0.00721188,46566.0,46565.0,0.32823909]
[1649152231775,0.27069356,46566.0,46565.0,0.32823909]
[1649152232140,0.27069356,46566.0,46562.0,0.32823909]
[1649152232240,0.27069356,46566.0,46562.0,0.32879551]
[1649152232337,0.27069356,46566.0,46562.0,0.42879551]
[1649152232740,0.27069356,46566.0,46562.0,0.32879551]
[1649152233039,0.27069356,46566.0,46563.0,0.32823909]
[1649152233838,0.00721188,46566.0,46563.0,0.32823909]
[1649152235241,0.00721188,46566.0,46563.0,0.54898164]
[1649152235341,0.00721188,46566.0,46563.0,0.60265464]
[1649152235969,0.00721188,46566.0,46563.0,0.80265464]
[1649152236121,0.00721188,46566.0,46564.0,0.22074255]
[1649152236225,0.00721188,46566.0,46565.0,0.32823909]
[1649152237123,0.00721188,46566.0,46565.0,0.54898164]
[1649152237578,0.00721188,46566.0,46565.0,0.32823909]
[1649152237674,0.00721188,46566.0,46565.0,0.54898164]
[1649152240184,0.00721188,46566.0,46565.0,0.54757371]
[1649152240819,0.00721188,46566.0,46565.0,0.32683116]
[1649152241219,0.00721188,46566.0,46565.0,0.54757371]
[1649152242071,0.00721188,46566.0,46565.0,0.86881171]
[1649152242172,0.00721188,46566.0,46565.0,0.91305618]
[1649152242272,0.00721188,46566.0,46565.0,0.64806916]
[1649152242370,0.00721188,46566.0,46565.0,0.91305618]
[1649152242476,0.00721188,46566.0,46565.0,1.21305618]
[1649152242874,0.00721188,46566.0,46565.0,0.99181818]
[1649152242975,0.00721188,46566.0,46565.0,1.31305618]
[1649152243075,0.00721188,46566.0,46565.0,1.01305618]
[1649152243176,0.00721188,46566.0,46565.0,1.21826715]
[1649152243275,0.00721188,46566.0,46565.0,0.90911563]
[1649152243427,0.00721188,46566.0,46565.0,1.20911563]
[1649152244173,0.00721188,46566.0,46565.0,1.40469501]
[1649152245477,0.01065968,46566.0,46565.0,1.40469501]
[1649152245980,0.01065968,46566.0,46565.0,1.20911563]
[1649152246884,0.00174996,46567.0,46566.0,0.8]
[1649152246981,0.00174996,46567.0,46566.0,1.10911563]
[1649152247123,0.00174996,46567.0,46566.0,1.20911563]
[1649152247621,0.00497329,46567.0,46566.0,1.20911563]
[1649152248176,0.00497329,46567.0,46566.0,0.90911563]
[1649152248322,0.00497329,46567.0,46566.0,1.21832382]
[1649152248423,0.00497329,46567.0,46566.0,0.74806916]
[1649152249575,0.00823032,46567.0,46566.0,0.74806916]
[1649152250231,0.00823032,46567.0,46566.0,1.01311615]
[1649152250525,0.00500699,46567.0,46566.0,1.01311615]
[1649152250624,0.00500699,46567.0,46566.0,0.74806916]
[1649152250971,0.00500699,46567.0,46566.0,0.99137373]
[1649152251172,0.00500699,46567.0,46566.0,1.25642065]
[1649152251673,0.00500699,46567.0,46566.0,0.74806916]
[1649152251772,0.00500699,46567.0,46566.0,1.01311648]
[1649152251875,0.00822969,46567.0,46566.0,1.01311648]
[1649152252578,0.00822969,46567.0,46566.0,0.74806916]
[1649152253076,0.00822969,46567.0,46566.0,1.01311634]
[1649152254226,0.00822969,46567.0,46566.0,0.69187834]
[1649152254327,0.00822969,46567.0,46566.0,1.01311634]
[1649152254770,0.00822969,46567.0,46566.0,0.69187834]
[1649152254869,0.00822969,46567.0,46566.0,1.01311634]
[1649152256872,0.00822969,46567.0,46566.0,0.74806916]
[1649152257074,0.00822969,46567.0,46566.0,1.01313487]
[1649152257575,0.00822969,46567.0,46566.0,0.74806916]
[1649152257974,0.00822969,46567.0,46566.0,0.64806916]
[1649152258274,0.00822969,46567.0,46566.0,0.86896681]
[1649152258476,0.00822969,46567.0,46566.0,0.54772881]
[1649152258877,0.01224669,46567.0,46566.0,0.54772881]
[1649152258976,0.01224669,46567.0,46566.0,0.86896681]
[1649152259077,0.01224669,46567.0,46566.0,0.32683116]
[1649152259178,0.01224669,46567.0,46566.0,0.64806916]
[1649152259927,0.01224669,46567.0,46566.0,0.74806916]
[1649152260434,0.01224669,46567.0,46566.0,1.0131383]
[1649152261235,0.19500431,46571.0,46567.0,0.05]
[1649152261531,0.19492849,46571.0,46567.0,0.05]
[1649152261632,0.19492849,46571.0,46568.0,0.22088796]
[1649152261832,0.19492849,46571.0,46569.0,0.22088796]
[1649152262680,0.19492849,46571.0,46569.0,0.21368796]
[1649152263228,0.19492849,46571.0,46569.0,0.31368796]
[1649152263329,0.19492849,46571.0,46570.0,0.321238]
[1649152263432,0.19492849,46571.0,46569.0,0.2]
[1649152263528,0.19492849,46571.0,46570.0,0.321238]
[1649152263729,0.19492849,46571.0,46570.0,0.421238]
[1649152263827,0.19492849,46571.0,46570.0,0.42353281]
[1649152263927,0.19492849,46571.0,46570.0,0.10229481]
[1649152264877,0.19492849,46571.0,46570.0,0.00229481]
[1649152265782,0.19492849,46571.0,46570.0,0.05229481]
[1649152266026,0.19858706,46571.0,46570.0,0.05229481]
[1649152266881,0.08849533,46571.0,46570.0,0.05229481]
[1649152268179,0.08849533,46571.0,46570.0,0.05126743]
[1649152269182,0.08849533,46571.0,46570.0,0.37250543]
[1649152269387,0.08849533,46571.0,46570.0,0.45126743]
[1649152269487,0.08849533,46571.0,46570.0,0.77250543]
[1649152269631,0.08849533,46571.0,46570.0,1.03757151]
[1649152269733,0.08849533,46571.0,46570.0,1.36577445]
[1649152269829,0.08849533,46571.0,46570.0,1.40857445]
[1649152270131,0.08849533,46571.0,46570.0,1.46223545]
[1649152270231,0.08849533,46571.0,46570.0,1.14099745]
[1649152270444,0.08849533,46571.0,46570.0,1.46223545]
[1649152270533,0.08849533,46571.0,46570.0,0.87593137]
[1649152270636,0.08849533,46571.0,46570.0,1.19716937]
[1649152270733,0.08849533,46571.0,46570.0,1.30717094]
[1649152271037,0.08849533,46571.0,46570.0,1.43892783]
[1649152271136,0.08849533,46571.0,46570.0,1.29160314]
[1649152271787,0.08849533,46571.0,46570.0,0.97036514]
[1649152272035,0.08849533,46571.0,46570.0,1.1543679]
[1649152272935,0.08849533,46571.0,46570.0,0.8331299]
[1649152273035,0.08849533,46571.0,46570.0,1.1543679]
[1649152273374,0.08849533,46571.0,46570.0,0.8543679]
[1649152273869,0.08849533,46571.0,46570.0,0.5331299]
[1649152274820,0.08849533,46571.0,46570.0,0.8543679]
[1649152275121,0.08849533,46571.0,46570.0,1.11941826]
[1649152275520,0.08849533,46571.0,46570.0,1.41941826]
[1649152275725,0.08849533,46571.0,46570.0,1.11941826]
[1649152276071,0.08849533,46571.0,46570.0,1.41941826]
[1649152276272,0.08849533,46571.0,46570.0,1.1543679]
[1649152277022,0.08849533,46571.0,46570.0,1.41941509]
[1649152277167,0.08849533,46571.0,46570.0,1.41941183]
[1649152277265,0.08849533,46571.0,46570.0,1.09817383]
[1649152277466,0.08849533,46571.0,46570.0,1.41941183]
[1649152277568,0.08849533,46571.0,46570.0,0.52227037]
[1649152277668,0.08849533,46571.0,46570.0,0.7873188]
[1649152277768,0.08849533,46571.0,46570.0,1.41941633]
[1649152277869,0.08849533,46571.0,46570.0,1.0873188]
[1649152277971,0.08849533,46571.0,46570.0,0.7873188]
[1649152278069,0.08849533,46571.0,46570.0,1.1543679]
[1649152278270,0.08849533,46571.0,46570.0,0.8543679]
[1649152278971,0.08849533,46571.0,46570.0,0.84350837]
[1649152279171,0.08849533,46571.0,46570.0,1.10855521]